Cogmind - Beta 10.2 @@@ ROGUE MODE // 2021.01.01 @ 12:01:08 Player: Perseus Result: Destroyed by P-80 Master with Gamma Rifle Performance ------------- Evolutions (7) 3500 Regions Visited (32) 6400 Robots Destroyed (202) 1010 Value Destroyed (7876) 7876 Prototype IDs (253) 5060 Alien Tech Used (5) 1000 Bonus (13147) 13147 TOTAL SCORE: 37993 Bonus ------- High Alert Combat Kills 865 Follower Combat Kills 1965 Entered Garrisons 200 Used RIF Installer 500 Network Hubs Disabled 200 Aligned with FarCom 300 Met Data Miner 300 Used Data Conduit 3000 Met Imprinter 300 Built Enhanced Grunts 300 A7 Reached Mainframe 300 Found Hidden Lab 3000 Decrypted A0 Command 3000 Pursued by Intercept 500 Friendly Fire -1583 Cogmind --------- Core Integrity 0/1300 Matter 137/300 Energy 98/100 System Corruption 34% Temperature Cool (4) Movement Flying (35) Location -3/Testing Parts ------- > --- POWER (3) -------- (None) > --- PROPULSION (5) --- Cooled Impulse Thruster > --- UTILITY (9) ------ Experimental Optical Array Deep Network Scanner > --- WEAPON (5) ------- (None) > --- INVENTORY (4) ---- Heavy Disruptor Cannon Potential Cannon Peak State ------------ > --- POWER ------------ Micro Fission Core Antimatter Reactor Light Antimatter Reactor > --- PROPULSION ------- Flexi-carbon Leg Flexi-carbon Leg Flexi-carbon Leg Myomer Leg Potential Leg > --- UTILITY ---------- Advanced Heat Sink Large Storage Unit Large Storage Unit Experimental Sensor Array Advanced Signal Interpreter Advanced Terrain Scanner Advanced Terrain Scan Processor Medium Regenerative Plating Improved Force Field > --- WEAPON ----------- Plasma Rifle Phase Gun Nova Cannon Enhanced Coil Gun Linear Accelerator > --- INVENTORY -------- Potential Leg Deep Network Scanner Makeshift System Restoration Module Transdimensional Reconstructor Core Regenerator Integrated Reactor Core Reset Matrix Electrolaser Heavy Proton Cannon Heavy Disruptor Cannon Potential Cannon Warp Cannon Enhanced Coil Gun Guided Remote Datajack [Rating: 139] Favorites ----------- Power Antimatter Reactor Engine Light Angular Momentum Engine Power Core Light Nuclear Core Reactor Antimatter Reactor Propulsion Enhanced Flexi-carbon Leg Treads Medium Treads Leg Enhanced Flexi-carbon Leg Hover Unit Cooled Antigrav System Flight Unit Flying Fortress v7 Utility Large Storage Unit Device Experimental Sensor Array Storage Large Storage Unit Processor Advanced Terrain Scan Processor Hackware Relay Coupler [Sentry] Protection Layered Medium Armor Plating Weapon Gauss Rifle Energy Gun Force Rifle Energy Cannon Improved EM Pulse Cannon Ballistic Gun Gauss Rifle Ballistic Cannon Heavy Flak Cannon Launcher Grenade Launcher Special Weapon Improved Remote Datajack Impact Weapon Powered Hammer Slashing Weapon Great Axe Special Melee Weapon Datajack Build | -11 -10 -10 -9 -9 -9 -8 -8 -7 -7 -7 -7 -7 -7 -6 -6 -6 -6 -6 -6 -6 -5 -5 -5 -5 -5 -5 -5 -4 -4 -4 -3 -3 ------- Run | Scr Mat Min Mat Min Exi Min Mat Fac Was Fac Low Low Dat Pro Fac Was Fac Low Low Zio Pro Fac Ext Cet Arc Hub Gar Fac Arm Lab Res Tes Slots Evolved 14 | . . . 2 . . . 2 2 . . . . . . 2 . . . . . . 2 . . . . . 2 . . 2 . Power 2 | . . . . . . . . . . . . . . . 1 . . . . . . . . . . . . 1 . . . . Propulsion 3 | . . . 1 . . . . . . . . . . . 1 . . . . . . . . . . . . . . . 1 . Utility 7 | . . . 1 . . . 1 2 . . . . . . . . . . . . . 2 . . . . . 1 . . . . Weapon 2 | . . . . . . . 1 . . . . . . . . . . . . . . . . . . . . . . . 1 . Parts Attached 421 | 7 3 4 17 8 6 8 30 4 . 3 21 19 12 23 3 1 19 21 11 4 17 3 33 13 7 4 30 15 17 16 25 17 Power 31 | 1 . . . 1 . 1 3 . . . 1 2 1 2 . . 1 1 . . 1 . 2 . 2 . 3 2 1 2 3 1 Engine 12 | 1 . . . 1 . . 3 . . . . . . . . . 1 1 . . . . 2 . . . 2 1 . . . . Core 6 | . . . . . . 1 . . . . 1 2 . 1 . . . . . . . . . . . . . . . . 1 . Reactor 13 | . . . . . . . . . . . . . 1 1 . . . . . . 1 . . . 2 . 1 1 1 2 2 1 Propulsion 64 | 2 . . 7 1 1 1 7 1 . . 2 1 3 . 1 1 6 . 2 . . . 2 . 1 2 8 1 3 4 3 4 Treads 3 | . . . 1 . . . . . . . . . . . . . . . 1 . . . . . . . . . 1 . . . Leg 55 | 2 . . 6 1 1 1 7 1 . . 2 1 3 . 1 . 6 . 1 . . . 2 . 1 1 8 . 1 4 3 2 Wheel . | . . . . . . . . . . . . . . . . . . . . . . . . . . . . . . . . . Hover 1 | . . . . . . . . . . . . . . . . . . . . . . . . . . . . . . . . 1 Flight 5 | . . . . . . . . . . . . . . . . 1 . . . . . . . . . 1 . 1 1 . . 1 Utility 192 | 2 2 1 5 2 2 1 9 3 . 1 11 8 6 7 2 . 9 19 8 4 13 2 19 5 4 2 10 7 4 4 12 8 Device 145 | 1 . 1 2 1 . 1 5 2 . 1 7 7 2 6 2 . 6 13 6 3 11 2 19 5 4 2 9 6 2 3 12 4 Storage 25 | 1 2 . 2 . 2 . 3 . . . 2 . 1 . . . 1 3 1 1 2 . . . . . . . 2 . . 2 Processor 4 | . . . . . . . 1 1 . . . . . . . . . . 1 . . . . . . . . . . . . 1 Hackware 2 | . . . . . . . . . . . . . . . . . . . . . . . . . . . 1 . . . . 1 Protection 16 | . . . 1 1 . . . . . . 2 1 3 1 . . 2 3 . . . . . . . . . 1 . 1 . . Artifact . | . . . . . . . . . . . . . . . . . . . . . . . . . . . . . . . . . Weapon 134 | 2 1 3 5 4 3 5 11 . . 2 7 8 2 14 . . 3 1 1 . 3 1 10 8 . . 9 5 9 6 7 4 Energy Gun 39 | 2 . . 3 . . 2 6 . . 1 1 1 . 2 . . 2 1 . . 1 . 4 1 . . 5 1 . 2 3 1 Energy Cannon 18 | . . . . 1 . . . . . . 2 1 2 . . . . . . . . . 1 . . . 1 3 1 1 2 3 Ballistic Gun 53 | . 1 3 2 2 2 2 4 . . 1 2 6 . 7 . . 1 . 1 . 1 . 4 4 . . 3 . 5 1 1 . Ballistic Cannon 8 | . . . . . . . . . . . 2 . . . . . . . . . 1 1 1 . . . . . 1 1 1 . Launcher 5 | . . . . . . 1 1 . . . . . . . . . . . . . . . . . . . . 1 2 . . . Special Weapon 1 | . . . . . . . . . . . . . . . . . . . . . . . . . . . . . . 1 . . Impact Weapon 4 | . . . . . . . . . . . . . . 4 . . . . . . . . . . . . . . . . . . Slashing Weapon 4 | . . . . . . . . . . . . . . 1 . . . . . . . . . 3 . . . . . . . . Piercing Weapon . | . . . . . . . . . . . . . . . . . . . . . . . . . . . . . . . . . Special Melee Weapon 2 | . . . . 1 1 . . . . . . . . . . . . . . . . . . . . . . . . . . . Unidentified Prototypes 13 | . . . . 1 . . 2 . . . . . . . . . . 2 . 1 1 . . . . . . . . 2 2 2 Parts Lost 100 | . . . 2 . . 3 6 . . 2 5 . 12 1 . . 2 1 . . . 1 1 . . 2 14 8 2 3 25 10 Power 13 | . . . . . . . 1 . . . . . 1 . . . . . . . . . . . . . 3 2 . 1 4 1 Propulsion 16 | . . . . . . . . . . . 1 . 3 . . . 1 1 . . . . . . . . 2 . . . 6 2 Utility 25 | . . . 1 . . 1 . . . . 2 . 3 . . . . . . . . . . . . 2 2 2 2 . 6 4 Weapon 46 | . . . 1 . . 2 5 . . 2 2 . 5 1 . . 1 . . . . 1 1 . . . 7 4 . 2 9 3 Highest Loss Streak 13 | . . . 2 . . 2 2 . . 2 5 . 8 1 . . 1 1 . . . 1 1 . . 2 9 6 1 3 13 6 Average Slot Usage (%) 93 | . 100 100 92 100 100 99 96 95 100 99 98 98 88 96 90 73 90 89 95 100 96 98 97 99 100 97 89 86 66 59 83 38 Engine 3 | . 14 14 11 11 11 . 8 7 7 7 1 . . . . . . 6 6 6 5 . 2 5 1 . 2 10 . . . . Core 2 | . . . . . . 10 . . . . 5 7 5 2 . . . . . . . . . . . . . . . . 3 . Reactor 3 | . . . . . . . . . . . . . . 4 6 6 6 6 6 6 6 11 7 5 9 11 7 1 6 5 7 2 Leg 22 | . 28 28 29 33 33 33 27 23 23 23 22 22 18 23 23 . 23 19 21 25 25 22 22 22 22 21 21 14 . 5 18 2 Device 11 | . 14 14 9 1 . 10 11 14 15 14 13 7 7 7 13 13 17 8 10 12 10 21 19 21 22 21 13 19 17 9 16 9 Storage 13 | . 14 14 18 22 22 22 18 15 15 15 15 15 12 14 6 6 7 11 10 11 10 11 11 11 11 11 11 10 10 10 9 9 Processor 11 | . . . . . . . 4 11 15 15 15 15 15 15 13 13 13 12 12 12 12 11 11 11 11 11 11 10 10 10 8 1 Protection 2 | . . . . 9 11 . . . . . . 5 6 6 6 6 1 1 . . . . . . . . . . . . 2 . Energy Gun 6 | . 20 14 9 10 . 7 13 15 15 10 1 . 5 3 . . 4 7 12 12 12 8 7 5 5 4 11 2 . 1 6 2 Energy Cannon 2 | . . . . . 11 3 . . . . 5 7 6 . . . . . . . . . . 5 5 4 1 4 . 4 1 3 Ballistic Gun 9 | . 7 14 12 10 6 8 12 7 7 11 8 8 6 11 20 20 13 12 12 12 10 11 8 9 11 10 6 6 12 9 3 . Ballistic Cannon 1 | . . . . . . . . . . . 5 4 . . . . . . . . 1 1 4 . . . . . . . 2 . Naked Turns . | . . . . . . . . . . . . . . . . . . . . . . . . . . . . . . . . . Heaviest Build 127 | 14 18 17 35 35 41 39 51 44 44 44 53 50 46 56 55 54 71 71 72 68 71 77 83 81 89 89 89 82 78 109 127 111 Greatest Support 123 | 20 20 20 45 45 45 45 45 45 45 45 50 50 84 84 112 72 112 76 92 92 92 92 101 101 101 101 104 86 72 85 123 30 Greatest Overweight (x) 28 | . . . 1 . . . 1 . . . 1 1 8 . . . . . . . . . . . . . . . 3 28 15 10 Average Overweight (x) . | . . . . . . . . . . . . . . . . . . . . . . . . . . . . . . 3 . 1 Largest Inventory Capacity 16 | 6 8 8 14 10 14 14 16 14 14 14 14 14 14 10 10 10 14 14 14 14 14 14 14 14 14 14 14 14 16 16 16 16 Average Capacity 12 | 4 7 8 9 10 11 14 14 14 14 14 13 14 12 10 10 10 10 12 12 13 12 14 14 14 14 14 14 14 15 16 16 14 Most Carried 16 | 4 8 8 10 10 14 14 15 14 14 14 14 14 14 10 10 10 13 14 14 14 14 14 14 14 14 14 14 14 16 16 16 14 Average Carried 12 | 2 6 7 9 9 11 13 13 13 14 13 13 12 11 9 9 9 10 12 12 12 12 12 13 13 13 13 12 13 15 14 14 9 Final Capacity 16 | 6 8 8 10 10 14 14 14 14 14 14 14 14 10 10 10 10 14 14 14 14 14 14 14 14 14 14 14 14 16 16 16 4 Final Carried 16 | 3 8 8 10 10 14 13 14 14 14 14 14 14 10 10 10 10 12 14 14 14 14 14 14 14 14 14 14 14 15 16 14 4 Class Distribution -------------------- 40% | Scavenger-Mutant 35% | Scavenger-Skirmisher 11% | Mutant 6% | Scavenger-Gunner Dominant Class ---------------- Mutant | -10/Materials Mutant | -10/Mines Mutant | -9/Materials Mutant | -9/Mines Mutant | -9/Exiles Mutant | -8/Mines Scavenger-Skirmisher | -8/Materials Scavenger-Skirmisher | -7/Factory Scavenger-Skirmisher | -7/Waste Scavenger-Skirmisher | -7/Factory Scavenger-Skirmisher | -7/Lower Caves Scavenger-Skirmisher | -7/Lower Caves Scavenger-Mutant | -7/Data Miner Scavenger-Mutant | -6/Proximity Caves Scavenger-Mutant | -6/Factory Scavenger-Skirmisher | -6/Waste Scavenger-Skirmisher | -6/Factory Scavenger-Mutant | -6/Lower Caves Scavenger-Mutant | -6/Lower Caves Scavenger-Mutant | -6/Zion Scavenger-Mutant | -5/Proximity Caves Scavenger-Skirmisher | -5/Factory Scavenger-Gunner | -5/Extension Scavenger-Mutant | -5/Cetus Scavenger-Mutant | -5/Archives Scavenger-Tank | -5/Hub_04(d) Scavenger-Mutant | -5/Garrison Scavenger-Mutant | -4/Factory Scout | -4/Armory Skirmisher | -4/Lab Scavenger-Skirmisher | -3/Research Mutant | -3/Testing Resources | -11 -10 -10 -9 -9 -9 -8 -8 -7 -7 -7 -7 -7 -7 -6 -6 -6 -6 -6 -6 -6 -5 -5 -5 -5 -5 -5 -5 -4 -4 -4 -3 -3 ----------- Run | Scr Mat Min Mat Min Exi Min Mat Fac Was Fac Low Low Dat Pro Fac Was Fac Low Low Zio Pro Fac Ext Cet Arc Hub Gar Fac Arm Lab Res Tes Matter Collected 9556 | 270 122 90 218 101 30 152 743 86 . 47 824 416 . 487 . . 302 577 548 110 987 272 1185 232 108 120 485 197 75 167 605 . Remotely . | . . . . . . . . . . . . . . . . . . . . . . . . . . . . . . . . . Salvage Created 9398 | 204 138 170 394 86 . 335 1524 69 . 47 402 358 259 501 60 . 348 409 205 . 463 152 912 58 126 181 980 100 75 167 675 . Parts 453 | 17 14 20 31 7 . 22 82 4 . . 10 19 11 13 3 . 22 8 13 . 16 4 28 3 8 7 33 13 3 8 34 . Haulers Intercepted 5 | . 1 . 1 . . . 3 . . . . . . . . . . . . . . . . . . . . . . . . . Recyclers Shooed 5 | . 1 . . . . . 2 . . . . . . . . . 2 . . . . . . . . . . . . . . . Parts Field Recycled . | . . . . . . . . . . . . . . . . . . . . . . . . . . . . . . . . . Retrieved Matter . | . . . . . . . . . . . . . . . . . . . . . . . . . . . . . . . . . Parts Self-Destructed 51 | . . . . . . . . . . . 13 8 . 12 . . . 1 2 2 13 . . . . . . . . . . . Prevented 9 | . . . . . . . . . . . 2 4 . . . . . 1 . . 2 . . . . . . . . . . . Kills | -11 -10 -10 -9 -9 -9 -8 -8 -7 -7 -7 -7 -7 -7 -6 -6 -6 -6 -6 -6 -6 -5 -5 -5 -5 -5 -5 -5 -4 -4 -4 -3 -3 ------- Run | Scr Mat Min Mat Min Exi Min Mat Fac Was Fac Low Low Dat Pro Fac Was Fac Low Low Zio Pro Fac Ext Cet Arc Hub Gar Fac Arm Lab Res Tes Combat Hostiles Destroyed 151 | . 3 3 11 7 . 12 19 . . 1 7 8 3 4 1 . 4 4 . . 4 2 11 1 1 2 22 7 1 3 10 . Melee 2 | . . . . . . . . . . . . . . 2 . . . . . . . . . . . . . . . . . . Guns 107 | . 3 3 11 6 . 4 19 . . 1 2 2 2 2 1 . 4 3 . . 4 1 6 1 1 1 22 . 1 2 5 . Cannons 24 | . . . . . . 3 . . . . 5 6 . . . . . . . . . 1 3 . . 1 . 1 . . 4 . AOE 16 | . . . . 1 . 5 . . . . . . . . . . . 1 . . . . 2 . . . . 6 . 1 . . Classes Destroyed 20 | 3 3 . 3 1 . 3 1 . . . 1 1 . 2 . . . 1 . . . . 1 . . . . . . . . . Worker 15 | 1 . 2 . . . 1 4 3 . . . . . . . . 3 . . . . . . . . 1 . . . . . . Builder 1 | . . . . . . 1 . . . . . . . . . . . . . . . . . . . . . . . . . . Tunneler 11 | 5 . 3 . . . 2 1 . . . . . . . . . . . . . . . . . . . . . . . . . Hauler 5 | . 1 . 1 . . . 3 . . . . . . . . . . . . . . . . . . . . . . . . . Recycler 5 | 1 . . . . . . 3 . . . . . . . . . . . . . . . 1 . . . . . . . . . Minesweeper 2 | . . . . . . . . . . . 1 . . 1 . . . . . . . . . . . . . . . . . . Operator 4 | . . . 1 . . . . . . . . . . . . . . . . . . . . . 1 1 . . 1 . . . Watcher 5 | . 2 . . . . . 2 . . . . . . . . . . . . . . 1 . . . . . . . . . . Swarmer 51 | . 3 3 6 6 . 6 . . . . 4 3 . 3 . . . . . . 1 . . . . . 11 5 . . . . Grunt 41 | . . . 4 . . 4 7 . . . 2 4 . . . . . 2 . . 1 2 1 . . . 10 1 . 3 . . Brawler 4 | . . . . . . . 1 . . . . . . . . . . 1 . . 1 . . . . . 1 . . . . . Duelist 2 | . . . . . . 1 1 . . . . . . . . . . . . . . . . . . . . . . . . . Researcher 1 | . . . . . . . . . . . . . . . . . . 1 . . . . . . . . . . . . . . Sentry 24 | . . . 1 . . . 9 . . 1 . . . . 1 . 2 . . . . . 6 . 1 2 . . . . 1 . Demolisher 1 | . . . . 1 . . . . . . . . . . . . . . . . . . . . . . . . . . . . Hunter 7 | . . . . . . 1 1 . . . 1 . . . . . 2 . . . . . 2 . . . . . . . . . Programmer 12 | . . . . . . . . . . . . . . . . . . . . . . . 1 . . . . 1 1 . 9 . Behemoth 2 | . . . . . . . . . . . . . . 1 . . . . . . 1 . . . . . . . . . . . Cetus Guard 1 | . . . . . . . . . . . . . . . . . . . . . . . . 1 . . . . . . . . Enhanced Grunt 3 | . . . . . . . . . . . . . 3 . . . . . . . . . . . . . . . . . . . Decomposer 3 | . . . . . . . . . . . . 3 . . . . . . . . . . . . . . . . . . . . Packrat 2 | . . . . . . . . . . . 2 . . . . . . . . . . . . . . . . . . . . . Samaritan 6 | . . . . . . . . . . . . . . 1 . . . 1 2 . 2 . . . . . . . . . . . Master Thief 2 | . . . . . . . . . . . . 1 . . . . . 1 . . . . . . . . . . . . . . Thug 3 | . . . . . . . . . . . . . . . . . . . . . . . 3 . . . . . . . . . Best Kill Streak 8 | 5 3 4 3 4 . 5 5 2 . 1 4 4 2 1 1 . 3 1 . . 2 2 2 1 1 3 8 6 1 2 5 . Combat Bots Only 8 | . 3 3 3 4 . 5 3 . . 1 4 4 2 1 1 . 1 1 . . 2 2 2 1 1 1 8 6 1 2 5 . Max Kills in Single Turn 5 | 1 1 2 1 2 . 2 1 1 . 1 1 1 1 1 1 . 1 1 1 . 1 1 3 1 1 2 2 5 1 1 1 . Gunslinging 1 | . . 1 . 1 . . . . . . . . . . . . . . . . . . . . . . 1 . . . . . Exploded 5 | . . . . 1 . 2 . . . . . . . . . . . 1 . . . . 1 . . . . 5 . 1 . . Melee 1 | . . . . . . . . . . . . . . 1 . . . . . . . . . . . . . . . . . . Uniques/NPCs Destroyed 1 | . . . . 1 . . . . . . . . . . . . . . . . . . . . . . . . . . . . YI-UF0 (-9/Mines) Combat | -11 -10 -10 -9 -9 -9 -8 -8 -7 -7 -7 -7 -7 -7 -6 -6 -6 -6 -6 -6 -6 -5 -5 -5 -5 -5 -5 -5 -4 -4 -4 -3 -3 -------- Run | Scr Mat Min Mat Min Exi Min Mat Fac Was Fac Low Low Dat Pro Fac Was Fac Low Low Zio Pro Fac Ext Cet Arc Hub Gar Fac Arm Lab Res Tes Damage Taken 20593 | . 72 61 366 499 . 605 1010 33 . 260 691 360 1676 396 21 . 646 546 . . 256 187 964 93 50 671 1414 1194 1036 1017 4654 1815 Core 3512 | . 7 16 62 63 . 151 135 . . 40 54 48 216 111 . . 44 102 . . 28 36 70 . . 50 135 167 143 246 984 604 Absorbed by Shields 1413 | . . . . . . . . . . . . . . . . . . . . . . . 99 33 19 240 118 183 . . 668 53 Core Remaining (%) 66 | 100 . 90 . . . 31 75 . . . . . . 33 . . . . . . 79 . . . . . 70 . . 51 . . Volleys Fired 739 | 13 14 19 33 21 . 45 96 10 6 7 34 31 21 28 3 . 22 31 25 . 37 12 44 11 8 12 58 10 8 11 51 18 Largest 4 | 2 2 2 2 2 . 2 3 3 3 3 3 3 3 3 3 . 3 3 1 . 4 4 4 4 4 4 4 4 4 2 4 1 Hottest 338 | 80 80 60 76 65 . 95 143 137 137 144 151 147 172 92 79 . 136 106 80 . 188 188 225 236 236 273 298 193 120 200 338 100 Shots Fired 1651 | 26 28 38 66 42 . 79 257 28 18 19 87 74 39 57 9 . 60 65 25 . 65 40 118 28 22 40 148 23 17 14 103 16 Gun 1391 | 26 28 38 66 42 . 46 256 28 18 19 56 32 23 57 9 . 60 65 25 . 64 35 83 17 18 30 143 9 13 3 72 10 Cannon 244 | . . . . . . 27 . . . . 31 42 16 . . . . . . . 1 5 35 11 4 10 5 9 1 10 31 6 Launcher 15 | . . . . . . 6 1 . . . . . . . . . . . . . . . . . . . . 5 3 . . . Special 1 | . . . . . . . . . . . . . . . . . . . . . . . . . . . . . . 1 . . Kinetic 807 | . 6 19 33 21 . 34 130 9 6 8 58 46 17 39 9 . 44 34 . . 26 29 75 12 12 20 65 9 14 6 26 . Thermal 608 | . . . 6 . . 39 126 19 12 11 27 . 15 18 . . 16 1 25 . 33 7 30 13 10 20 83 8 . 7 66 16 Explosive 15 | . . . . . . 6 1 . . . . . . . . . . . . . . . . . . . . 5 3 . . . Electromagnetic 220 | 26 22 19 27 21 . . . . . . 2 28 7 . . . . 30 . . 6 4 13 3 . . . 1 . . 11 . Robot Hit Streak 15 | 7 7 8 11 10 . 6 13 2 7 5 9 7 10 11 8 . 9 10 6 . 8 6 14 13 5 10 10 9 2 4 15 13 Robot Miss Streak 9 | 2 2 1 4 6 . 4 4 6 7 1 8 9 7 3 1 . 2 4 1 . 3 4 4 1 3 3 5 2 2 1 2 . Penetration Max 1 | . . . . . . . . . . . . . . . 1 . 1 1 . . . 1 1 1 . 1 1 . . . . . Secondary Targets 16 | . . 1 1 1 . . 3 . . . . . 1 . . . . 1 . . 2 . . . . . 5 . . . 1 . Max Gunslinging Chain 1 | . . 1 1 1 . . 1 . . . . . 1 . . . . 1 . . 1 . . . . . 1 . . . 1 . Shots Hit Robots 1024 | 17 18 25 41 26 4 48 167 9 11 13 41 39 33 41 6 . 41 37 19 . 44 22 68 18 12 22 97 10 5 5 76 9 Core Hits 455 | 7 6 12 17 11 . 27 60 5 2 3 19 22 21 16 4 . 14 22 5 . 18 9 36 8 5 16 40 17 2 4 24 3 Critical Hits 28 | . . 1 . . . 1 1 . . . . . . 3 . . 1 1 2 . 4 . 2 2 2 . 3 . 1 1 2 1 Critical Kills 13 | . . 1 . . . 1 . . . . . . . 1 . . . 1 1 . . . 1 1 1 . 2 . 1 1 1 . Critical Parts Destroyed 11 | . . . . . . . 1 . . . . . . 1 . . 1 . 1 . 2 . 1 1 . . 1 . . . 1 1 Melee Attacks 30 | . . . . . 4 . . . . . . . . 26 . . . . . . . . . . . . . . . . . . Impact 18 | . . . . . . . . . . . . . . 18 . . . . . . . . . . . . . . . . . . Slashing 8 | . . . . . . . . . . . . . . 8 . . . . . . . . . . . . . . . . . . Piercing . | . . . . . . . . . . . . . . . . . . . . . . . . . . . . . . . . . Sneak Attacks 5 | . . . . . 4 . . . . . . . . 1 . . . . . . . . . . . . . . . . . . Combat Hostiles . | . . . . . . . . . . . . . . . . . . . . . . . . . . . . . . . . . Follow-up Attacks 3 | . . . . . . . . . . . . . . 3 . . . . . . . . . . . . . . . . . . Damage Inflicted 24295 | 293 335 237 479 275 . 1081 2482 151 280 210 679 947 521 970 184 . 975 938 491 . 1064 492 1975 597 300 1284 2158 1221 146 509 2738 283 Guns 16800 | 245 246 237 479 198 . 346 2482 151 280 210 361 194 292 717 184 . 975 757 491 . 1064 400 1135 342 217 582 2074 80 146 97 1593 225 Cannons 4304 | . . . . . . 353 . . . . 318 753 229 . . . . . . . . 92 379 255 83 289 84 161 . 181 1081 46 Explosions 2804 | 48 89 . . 77 . 382 . . . . . . . . . . . 129 . . . . 461 . . 407 . 980 . 231 . . Melee 248 | . . . . . . . . . . . . . . 248 . . . . . . . . . . . . . . . . . . Ramming 139 | . . . . . . . . . . . . . . 5 . . . 52 . . . . . . . 6 . . . . 64 12 Kinetic 8718 | . 6 76 120 61 . 236 1176 28 148 77 355 376 206 470 184 . 661 436 . . 304 358 898 292 120 312 805 80 146 146 641 . Thermal 11186 | 48 89 . 79 77 . 463 1306 123 132 133 278 . 205 247 . . 314 148 491 . 703 77 894 283 180 559 1353 447 . 363 1923 271 Explosive 1076 | . . . . . . 382 . . . . . . . . . . . . . . . . . . . . . 694 . . . . Electromagnetic 2928 | 245 240 161 280 137 . . . . . . 46 571 110 . . . . 302 . . 57 57 183 22 . 407 . . . . 110 . Impact 127 | . . . . . . . . . . . . . . 127 . . . . . . . . . . . . . . . . . . Slashing 121 | . . . . . . . . . . . . . . 121 . . . . . . . . . . . . . . . . . . Piercing . | . . . . . . . . . . . . . . . . . . . . . . . . . . . . . . . . . Highest Corruption 34 | . 4 4 . . . . 1 . 19 19 19 . . . . 5 5 1 . . . . . . . 1 1 1 2 3 23 34 Average Corruption 8 | . 3 4 . . . . 1 . 13 19 13 . . . . 5 3 1 . . . . . . . 1 1 1 1 2 9 23 Corruption Purged 31 | . . . . . . . . . . . 19 . . . . . 4 2 . . . . . . . . 1 . . . 2 3 Effects 346 | . 2 12 . . . . 3 . 8 20 215 . . . . 1 8 2 . . . . . . . . 1 . 1 11 27 35 Message Errors 69 | . . 4 . . . . . . . 5 39 . . . . . 4 1 . . . . . . . . 1 . . 3 7 5 Matter Fused 59 | . 1 4 . . . . . . 1 3 42 . . . . 1 . . . . . . . . . . . . . 1 1 5 Heat Flow Errors 41 | . . 1 . . . . . . 2 2 23 . . . . . . . . . . . . . . . . . . 3 5 5 Energy Discharges 39 | . . 1 . . . . 1 . . 1 27 . . . . . 1 1 . . . . . . . . . . . 4 1 2 Parts Rejected 3 | . . . . . . . . . . . 2 . . . . . . . . . . . . . . . . . . . . 1 Data Loss (minor) 33 | . 1 1 . . . . 1 . 3 . 24 . . . . . 1 . . . . . . . . . . . . . . 2 Data Loss (major) 12 | . . . . . . . . . . . 11 . . . . . . . . . . . . . . . . . . . . 1 Misfires 12 | . . . . . . . . . . . 11 . . . . . . . . . . . . . . . . . . . 1 . Alerts 3 | . . . . . . . . . 1 1 1 . . . . . . . . . . . . . . . . . . . . . Misdirections 32 | . . . . . . . . . . 5 20 . . . . . . . . . . . . . . . . . . . 1 6 Targeting Errors 37 | . . 1 . . . . 1 . 1 3 13 . . . . . 2 . . . . . . . . . . . 1 . 9 6 Weapon Failures 6 | . . . . . . . . . . . 2 . . . . . . . . . . . . . . . . . . . 2 2 Overload Shots 1 | . . . . . . . . . . . . . . . . . . . . . . . . . . 1 . . . . . . Overflow Damage 136 | . . . . . . . . . . . 3 24 . 46 . . . 6 . . . . . . . . . 9 . . 48 . Projectiles 75 | . . . . . . . . . . . 3 24 . . . . . . . . . . . . . . . . . . 48 . Explosions 15 | . . . . . . . . . . . . . . . . . . 6 . . . . . . . . . 9 . . . . Melee 46 | . . . . . . . . . . . . . . 46 . . . . . . . . . . . . . . . . . . Knockbacks 13 | . . . . . . . . . . . . 7 . . . . . . . . . . 2 . . . . . . 1 3 . Impact . | . . . . . . . . . . . . . . . . . . . . . . . . . . . . . . . . . Kinetic 12 | . . . . . . . . . . . . 6 . . . . . . . . . . 2 . . . . . . 1 3 . Secondary 1 | . . . . . . . . . . . . 1 . . . . . . . . . . . . . . . . . . . . Self-Inflicted Damage 646 | . 25 . . 38 . 19 . . . . . . . 2 . . . 123 . . . . 130 . . 100 . 112 82 . 9 6 Shots 11 | . 1 . . 1 . 1 . . . . . . . . . . . 1 . . . . 2 . . 1 . 2 2 . . . Rammed 6 | . . . . . . . . . . . . . . 1 . . . . . . . . . . . . . . . . 2 3 Targets Rammed 10 | . . . . . . . . . . . . . . 1 . . . . . . . . . . . 1 . . . . 5 3 Kicked 4 | . . . . . . . . . . . . . . . . . . . . . . . . . . 1 . . . . 3 . Crushed . | . . . . . . . . . . . . . . . . . . . . . . . . . . . . . . . . . Highest Temperature 484 | 144 84 237 48 164 . 305 141 . 194 170 255 251 187 309 . . 171 221 228 . 230 39 30 . . 36 279 24 12 169 484 439 Average Temperature 88 | 54 29 42 17 58 . 170 26 . 98 54 75 120 103 116 . . 52 84 80 . 92 19 11 . . 19 128 10 9 66 161 105 Received Heat Transfer 2945 | . . . 87 . . 198 387 . . 84 36 135 246 24 18 . 84 261 . . 21 90 153 . 6 6 459 225 54 147 80 144 Effects 6 | . . . . . . 1 . . . . . . . . . . . . . . . . . . . . . . . . 5 . Shutdowns 3 | . . . . . . . . . . . . . . . . . . . . . . . . . . . . . . . 3 . Energy Bleed 1 | . . . . . . . . . . . . . . . . . . . . . . . . . . . . . . . 1 . Interference 1 | . . . . . . 1 . . . . . . . . . . . . . . . . . . . . . . . . . . Damage (minor) 1 | . . . . . . . . . . . . . . . . . . . . . . . . . . . . . . . 1 . Siege Activations . | . . . . . . . . . . . . . . . . . . . . . . . . . . . . . . . . . Robots Corrupted 1 | . . . . . . . . . . . . . 1 . . . . . . . . . . . . . . . . . . . Combat Hostiles 1 | . . . . . . . . . . . . . 1 . . . . . . . . . . . . . . . . . . . Parts Fried 14 | 3 1 . . 1 . . . . . . . 2 4 1 . . . . . . 1 . . . . 1 . . . . . . Impact Corruptions 2 | . . . . . . . . . . . . . . 2 . . . . . . . . . . . . . . . . . . Robots Melted 1 | . . . . . . . . . . . . . . . . . . . . . . . . . . . . . . . 1 . Combat Hostiles 1 | . . . . . . . . . . . . . . . . . . . . . . . . . . . . . . . 1 . Parts Melted 23 | . . . . . . . 3 1 . 1 . . . . . . . . . . 3 . 1 . . . 4 . . 1 9 . Heat Transferred 16162 | 50 50 . 185 50 . 999 2886 296 296 296 481 . 559 444 . . 444 137 703 . 999 111 1127 187 161 471 1884 298 . 290 2425 333 Parts Sabotaged . | . . . . . . . . . . . . . . . . . . . . . . . . . . . . . . . . . Parts Stolen 5 | . . . . . . . . . . . 2 3 . . . . . . . . . . . . . . . . . . . . Parts Stripped . | . . . . . . . . . . . . . . . . . . . . . . . . . . . . . . . . . Power Chain Reactions 7 | 1 2 . . 1 . . . . . . . . . . . . . 2 . . . . 1 . . . . . . . . . Missiles Intercepted . | . . . . . . . . . . . . . . . . . . . . . . . . . . . . . . . . . Alert | -11 -10 -10 -9 -9 -9 -8 -8 -7 -7 -7 -7 -7 -7 -6 -6 -6 -6 -6 -6 -6 -5 -5 -5 -5 -5 -5 -5 -4 -4 -4 -3 -3 ------- Run | Scr Mat Min Mat Min Exi Min Mat Fac Was Fac Low Low Dat Pro Fac Was Fac Low Low Zio Pro Fac Ext Cet Arc Hub Gar Fac Arm Lab Res Tes Peak Influence 1472 | 35 192 90 306 179 . 170 378 228 79 87 . . . . 75 26 173 . . . . 154 747 801 538 1217 1472 1337 990 . 229 103 Initial 795 | . 22 22 35 87 . . 5 140 79 27 . . . . . 26 18 . . . . 30 74 417 320 188 795 767 436 . . 8 Average 317 | 16 91 32 191 75 . 65 220 160 57 56 . . . . 27 26 72 . . . . 72 279 654 500 608 1261 917 599 . 76 44 Maximum Alert Level 4 | . . . 1 . . . 1 1 . . . . . . . . . . . . . . 3 3 2 4 4 4 3 . 1 . Low Security (%) 59 | 100 100 100 50 100 . 100 38 86 100 100 . . . . 100 100 100 . . . . 100 31 . . 12 . . . . 96 100 Level 1 17 | . . . 49 . . . 61 13 . . . . . . . . . . . . . . 48 . 11 18 . . . . 3 . Level 2 6 | . . . . . . . . . . . . . . . . . . . . . . . 9 54 88 36 . . 76 . . . Level 3 7 | . . . . . . . . . . . . . . . . . . . . . . . 10 45 . 6 18 83 23 . . . Level 4 9 | . . . . . . . . . . . . . . . . . . . . . . . . . . 25 81 16 . . . . Level 5 . | . . . . . . . . . . . . . . . . . . . . . . . . . . . . . . . . . High Security . | . . . . . . . . . . . . . . . . . . . . . . . . . . . . . . . . . Max Security . | . . . . . . . . . . . . . . . . . . . . . . . . . . . . . . . . . Squads Dispatched 23 | . . . 2 . . . 1 1 . 1 . . . . . . 2 . . . . 1 . . . 2 . 4 1 . 6 2 Investigation 4 | . . . 1 . . . . . . . . . . . . . 2 . . . . . . . . . . . . . . 1 Extermination 5 | . . . . . . . . 1 . 1 . . . . . . . . . . . . . . . . . . . . 2 1 Reinforcement 8 | . . . 1 . . . 1 . . . . . . . . . . . . . . 1 . . . 1 . 2 1 . 1 . Assault 2 | . . . . . . . . . . . . . . . . . . . . . . . . . . . . 2 . . . . Garrison 1 | . . . . . . . . . . . . . . . . . . . . . . . . . . 1 . . . . . . Intercept 3 | . . . . . . . . . . . . . . . . . . . . . . . . . . . . . . . 3 . Construction Impeded 1 | . . . . . . . . . . . . . . . . . . . . . . . . . . . . . . . 1 . Haulers Reinforced 1 | . . . . . . . . . . . . . . . . . . . . . . . . . . 1 . . . . . . Stealth | -11 -10 -10 -9 -9 -9 -8 -8 -7 -7 -7 -7 -7 -7 -6 -6 -6 -6 -6 -6 -6 -5 -5 -5 -5 -5 -5 -5 -4 -4 -4 -3 -3 --------- Run | Scr Mat Min Mat Min Exi Min Mat Fac Was Fac Low Low Dat Pro Fac Was Fac Low Low Zio Pro Fac Ext Cet Arc Hub Gar Fac Arm Lab Res Tes Distress Signals 9 | . . . 1 . . 1 2 . . . . . . . . . 1 . . . . . 1 1 . . . 1 . . 1 . Communications Jammed . | . . . . . . . . . . . . . . . . . . . . . . . . . . . . . . . . . Distress Signals . | . . . . . . . . . . . . . . . . . . . . . . . . . . . . . . . . . Times Spotted 365 | . 5 3 14 8 . 13 38 2 5 3 12 11 6 4 1 4 5 8 . . 8 7 25 11 8 16 27 39 26 4 32 20 Peak Tracking Total 22 | . 3 3 5 4 . 5 3 2 5 2 4 4 3 1 1 4 2 3 . . 4 3 4 5 2 6 9 22 15 3 17 14 Tactical Retreats 25 | . . . . . . . 1 . . . 1 . . . . . . 3 . . . 1 . 1 . 2 4 1 8 . 1 2 Traps | -11 -10 -10 -9 -9 -9 -8 -8 -7 -7 -7 -7 -7 -7 -6 -6 -6 -6 -6 -6 -6 -5 -5 -5 -5 -5 -5 -5 -4 -4 -4 -3 -3 ------- Run | Scr Mat Min Mat Min Exi Min Mat Fac Was Fac Low Low Dat Pro Fac Was Fac Low Low Zio Pro Fac Ext Cet Arc Hub Gar Fac Arm Lab Res Tes Traps Triggered 11 | . 2 . . . . . 2 1 . . . . . . 1 . . . . . . . 1 . . . . 1 1 . 1 1 Indirectly . | . . . . . . . . . . . . . . . . . . . . . . . . . . . . . . . . . Trap Hack Attempts . | . . . . . . . . . . . . . . . . . . . . . . . . . . . . . . . . . Triggered . | . . . . . . . . . . . . . . . . . . . . . . . . . . . . . . . . . Disarmed 5 | . 5 . . . . . . . . . . . . . . . . . . . . . . . . . . . . . . . Reprogrammed 12 | . 6 . . . . . . . . . . . . . . . . . . . . . . . . . . . 6 . . . Reused 11 | . . . . . . 1 . . . . 3 . 1 5 . . . . . . . . . . . . . . 1 . . . Traps Extracted . | . . . . . . . . . . . . . . . . . . . . . . . . . . . . . . . . . Installed 15 | . . . . . . 1 . . . . 3 . 3 8 . . . . . . . . . . . . . . . . . . Triggered 16 | . . . . . . 1 . . . . 5 . . 5 . . . . 3 . . . . . . . . 1 1 . . . Machines | -11 -10 -10 -9 -9 -9 -8 -8 -7 -7 -7 -7 -7 -7 -6 -6 -6 -6 -6 -6 -6 -5 -5 -5 -5 -5 -5 -5 -4 -4 -4 -3 -3 ---------- Run | Scr Mat Min Mat Min Exi Min Mat Fac Was Fac Low Low Dat Pro Fac Was Fac Low Low Zio Pro Fac Ext Cet Arc Hub Gar Fac Arm Lab Res Tes Machines Disabled 50 | . . 1 . . . 1 1 2 . . . . . . 1 . . . . . 1 . 6 1 2 14 2 6 1 7 1 3 Max in Single Turn 13 | . . 1 . . . 1 1 . . . . . . . 1 . . . . . 1 . 2 1 1 13 1 2 1 3 1 1 Garrison Access 2 | . . . . . . . . . . . . . . . . . 1 . . . . . . . . . . . . . 1 . Garrison Relay 2 | . . . . . . . . . . . . . . . . . . . . . . . . . . . 2 . . . . . Network Hub 1 | . . . . . . . . . . . . . . . . . . . . . . . . . . 1 . . . . . . Energy Cycler 2 | . . . . . . . . . . . . . . . . . . . . . . . 2 . . . . . . . . . Machines Sabotaged . | . . . . . . . . . . . . . . . . . . . . . . . . . . . . . . . . . Garrisons Compromised . | . . . . . . . . . . . . . . . . . . . . . . . . . . . . . . . . . Overloaded Fab Kills . | . . . . . . . . . . . . . . . . . . . . . . . . . . . . . . . . . Fab Network Shutdowns . | . . . . . . . . . . . . . . . . . . . . . . . . . . . . . . . . . Hacking | -11 -10 -10 -9 -9 -9 -8 -8 -7 -7 -7 -7 -7 -7 -6 -6 -6 -6 -6 -6 -6 -5 -5 -5 -5 -5 -5 -5 -4 -4 -4 -3 -3 --------- Run | Scr Mat Min Mat Min Exi Min Mat Fac Was Fac Low Low Dat Pro Fac Was Fac Low Low Zio Pro Fac Ext Cet Arc Hub Gar Fac Arm Lab Res Tes Machines Accessed 65 | . 7 . 4 . 1 1 10 1 . 4 . . 3 . 3 . 7 2 . . 1 . . . . 2 . 5 3 1 6 4 Terminals 40 | . 7 . 3 . . 1 6 . . 2 . . . . 2 . 4 1 . . . . . . . 1 . 3 3 . 4 3 Fabricators 3 | . . . . . . . . . . . . . . . 1 . 1 . . . . . . . . . . . . . . 1 Repair Stations 1 | . . . . . . . 1 . . . . . . . . . . . . . . . . . . . . . . . . . Recycling Units 5 | . . . 1 . . . 2 . . 1 . . . . . . . . . . . . . . . . . 1 . . . . Scanalyzers 3 | . . . . . . . 1 . . 1 . . . . . . . . . . . . . . . . . . . . 1 . Garrison Access 6 | . . . . . . . . 1 . . . . . . . . 2 . . . . . . . . 1 . 1 . . 1 . Total Hacks 243 | . 31 . 13 . 1 1 44 1 . 11 . . 20 . 6 . 20 4 . . 1 . . . . 7 . 23 8 19 22 11 Successful 136 | . 19 . 8 . 1 . 23 . . 2 . . 20 . 2 . 7 4 . . 1 . . . . 2 . 13 5 19 8 2 Failed 105 | . 11 . 5 . . 1 20 1 . 9 . . . . 4 . 13 . . . . . . . . 5 . 10 3 . 14 9 Catastrophic 23 | . . . . . . 1 2 1 . 4 . . . . 2 . 3 . . . . . . . . . . 2 1 . 4 3 Database Lockouts 2 | . 1 . . . . . 1 . . . . . . . . . . . . . . . . . . . . . . . . . Manual 121 | . 11 . 13 . 1 1 29 . . 9 . . . . 3 . 6 . . . 2 . . 1 . 4 . 21 3 . 9 8 Terminals 137 | . 31 . 12 . . 1 21 . . 8 . . . . 4 . 12 3 . . . . . . . 4 . 9 8 . 17 7 Fabricators 9 | . . . . . . . . . . . . . . . 2 . 3 . . . . . . . . . . . . . . 4 Repair Stations 3 | . . . . . . . 3 . . . . . . . . . . . . . . . . . . . . . . . . . Recycling Units 21 | . . . 1 . . . 14 . . 1 . . . . . . . . . . . . . . . . . 5 . . . . Scanalyzers 12 | . . . . . . . 6 . . 2 . . . . . . . . . . . . . . . . . . . . 4 . Garrison Access 19 | . . . . . . . . 1 . . . . . . . . 5 . . . . . . . . 3 . 9 . . 1 . Terminal Hacks 81 | . 15 . 4 . 1 . 3 . . . . . 20 . . . 2 4 . . 1 . . . . . . 3 4 19 3 2 Record 29 | . . . . . . . . . . . . . 6 . . . . 3 . . 1 . . . . . . . . 19 . . Part Schematic 7 | . . . . . . . 2 . . . . . 5 . . . . . . . . . . . . . . . . . . . Robot Schematic 6 | . . . . . . . . . . . . . 6 . . . . . . . . . . . . . . . . . . . Robot Analysis 7 | . 3 . 3 . . . 1 . . . . . . . . . . . . . . . . . . . . . . . . . Prototype ID Bank 6 | . 2 . . . . . . . . . . . 3 . . . . . . . . . . . . . . . . . 1 . Open Door 2 | . . . . . . . . . . . . . . . . . . 1 . . . . . . . . . . 1 . . . Level Access Points 1 | . . . . . . . . . . . . . . . . . . . . . . . . . . . . . . . . 1 Branch Access Points 5 | . 1 . 1 . . . . . . . . . . . . . 1 . . . . . . . . . . 1 . . 1 . Terminal Index 1 | . 1 . . . . . . . . . . . . . . . . . . . . . . . . . . . . . . . Alert Level 1 | . 1 . . . . . . . . . . . . . . . . . . . . . . . . . . . . . . . Unreport Threat 4 | . 1 . . . . . . . . . . . . . . . . . . . . . . . . . . 2 . . 1 . Locate Traps 3 | . 2 . . . . . . . . . . . . . . . . . . . . . . . . . . . . . . 1 Disarm Traps 1 | . 1 . . . . . . . . . . . . . . . . . . . . . . . . . . . . . . . Reprogram Traps 3 | . 1 . . . . . . . . . . . . . . . . . . . . . . . . . . . 2 . . . Registered Prototypes 1 | . 1 . . . . . . . . . . . . . . . . . . . . . . . . . . . . . . . Zone Layout 3 | . 1 . . . . . . . . . . . . . . . 1 . . . . . . . . . . . 1 . . . EX-Prototype ID Bank 1 | . . . . . 1 . . . . . . . . . . . . . . . . . . . . . . . . . . . Fabricator Hacks 3 | . . . . . . . . . . . . . . . 1 . 2 . . . . . . . . . . . . . . . Load Schematic 2 | . . . . . . . . . . . . . . . 1 . 1 . . . . . . . . . . . . . . . Build 1 | . . . . . . . . . . . . . . . . . 1 . . . . . . . . . . . . . . . Repair Station Hacks 2 | . . . . . . . 2 . . . . . . . . . . . . . . . . . . . . . . . . . Scan Component 1 | . . . . . . . 1 . . . . . . . . . . . . . . . . . . . . . . . . . Repair 1 | . . . . . . . 1 . . . . . . . . . . . . . . . . . . . . . . . . . Recycling Unit Hacks 2 | . . . . . . . 2 . . . . . . . . . . . . . . . . . . . . . . . . . Retrieve Matter 1 | . . . . . . . 1 . . . . . . . . . . . . . . . . . . . . . . . . . Retrieve Components 1 | . . . . . . . 1 . . . . . . . . . . . . . . . . . . . . . . . . . Scanalyzer 10 | . . . . . . . 6 . . . . . . . . . . . . . . . . . . . . . . . 4 . Insert Component 7 | . . . . . . . 3 . . . . . . . . . . . . . . . . . . . . . . . 4 . Analyze 3 | . . . . . . . 3 . . . . . . . . . . . . . . . . . . . . . . . . . Garrison Access Hacks 3 | . . . . . . . . . . . . . . . . . 1 . . . . . . . . 1 . . . . 1 . Unlock Access 1 | . . . . . . . . . . . . . . . . . . . . . . . . . . 1 . . . . . . Seal Access 2 | . . . . . . . . . . . . . . . . . 1 . . . . . . . . . . . . . 1 . Unauthorized Hacks 35 | . 4 . 4 . . . 10 . . 2 . . . . 1 . 2 . . . . . . . . 1 . 10 1 . . . Terminals 17 | . 4 . 3 . . . 2 . . 2 . . . . 1 . 2 . . . . . . . . 1 . 1 1 . . . Track 1 | . 1 . . . . . . . . . . . . . . . . . . . . . . . . . . . . . . . Assimilate 2 | . . . . . . . . . . 1 . . . . . . . . . . . . . . . 1 . . . . . . Botnet 12 | . 2 . 2 . . . 2 . . 1 . . . . 1 . 2 . . . . . . . . . . 1 1 . . . Operators 2 | . 1 . 1 . . . . . . . . . . . . . . . . . . . . . . . . . . . . . Fabricators . | . . . . . . . . . . . . . . . . . . . . . . . . . . . . . . . . . Repair Stations 1 | . . . . . . . 1 . . . . . . . . . . . . . . . . . . . . . . . . . Mechanics 1 | . . . . . . . 1 . . . . . . . . . . . . . . . . . . . . . . . . . Recycling Units 12 | . . . 1 . . . 7 . . . . . . . . . . . . . . . . . . . . 4 . . . . Monitor 3 | . . . . . . . 2 . . . . . . . . . . . . . . . . . . . . 1 . . . . Reject 3 | . . . . . . . 2 . . . . . . . . . . . . . . . . . . . . 1 . . . . Recyclers 2 | . . . . . . . 1 . . . . . . . . . . . . . . . . . . . . 1 . . . . Mask 3 | . . . . . . . 2 . . . . . . . . . . . . . . . . . . . . 1 . . . . Tunnel 1 | . . . 1 . . . . . . . . . . . . . . . . . . . . . . . . . . . . . Scanalyzers . | . . . . . . . . . . . . . . . . . . . . . . . . . . . . . . . . . Garrison Access 5 | . . . . . . . . . . . . . . . . . . . . . . . . . . . . 5 . . . . Broadcast 1 | . . . . . . . . . . . . . . . . . . . . . . . . . . . . 1 . . . . Decoy 1 | . . . . . . . . . . . . . . . . . . . . . . . . . . . . 1 . . . . Reprogram 1 | . . . . . . . . . . . . . . . . . . . . . . . . . . . . 1 . . . . Intercept 1 | . . . . . . . . . . . . . . . . . . . . . . . . . . . . 1 . . . . Watchers 1 | . . . . . . . . . . . . . . . . . . . . . . . . . . . . 1 . . . . Data Cores Recovered 1 | . . . . . . . . . . . . . . . . . . . . . . . . . . 1 . . . . . . Used . | . . . . . . . . . . . . . . . . . . . . . . . . . . . . . . . . . Hacking Detections 54 | . 7 . 3 . . 1 10 1 . 4 . . . . 3 . 7 1 . . . . . . . 1 . 5 2 . 5 4 Full Trace Events 3 | . . . . . . . . . . . . . . . . . 2 . . . . . . . . . . . . . . 1 Feedback Events . | . . . . . . . . . . . . . . . . . . . . . . . . . . . . . . . . . Feedback Blocked . | . . . . . . . . . . . . . . . . . . . . . . . . . . . . . . . . . Robot Schematics Acquired 6 | . . . . . . . . . . . . . 6 . . . . . . . . . . . . . . . . . . . Robots Built . | . . . . . . . . . . . . . . . . . . . . . . . . . . . . . . . . . Matter . | . . . . . . . . . . . . . . . . . . . . . . . . . . . . . . . . . Time . | . . . . . . . . . . . . . . . . . . . . . . . . . . . . . . . . . Total Robot Build Rating . | . . . . . . . . . . . . . . . . . . . . . . . . . . . . . . . . . Part Schematics Acquired 10 | . . . . . . . 5 . . . . . 5 . . . . . . . . . . . . . . . . . . . Parts Built 2 | . . . . . . . . . . . . . . . . . 2 . . . . . . . . . . . . . . . Matter 146 | . . . . . . . . . . . . . . . . . 146 . . . . . . . . . . . . . . . Time 36 | . . . . . . . . . . . . . . . . . 36 . . . . . . . . . . . . . . . Total Part Build Rating 6 | . . . . . . . . . . . . . . . . . 6 . . . . . . . . . . . . . . . Parts Repaired 1 | . . . . . . . 1 . . . . . . . . . . . . . . . . . . . . . . . . . Time 100 | . . . . . . . 100 . . . . . . . . . . . . . . . . . . . . . . . . . Parts Recycled . | . . . . . . . . . . . . . . . . . . . . . . . . . . . . . . . . . Recycled Matter . | . . . . . . . . . . . . . . . . . . . . . . . . . . . . . . . . . Retrieved Matter 150 | . . . . . . . 150 . . . . . . . . . . . . . . . . . . . . . . . . . Retrieved Components 10 | . . . . . . . 10 . . . . . . . . . . . . . . . . . . . . . . . . . Parts Scanalyzed 3 | . . . . . . . 3 . . . . . . . . . . . . . . . . . . . . . . . . . Part Schematics Acquired 3 | . . . . . . . 3 . . . . . . . . . . . . . . . . . . . . . . . . . Parts Damaged 2 | . . . . . . . 2 . . . . . . . . . . . . . . . . . . . . . . . . . Bothacking | -11 -10 -10 -9 -9 -9 -8 -8 -7 -7 -7 -7 -7 -7 -6 -6 -6 -6 -6 -6 -6 -5 -5 -5 -5 -5 -5 -5 -4 -4 -4 -3 -3 ------------ Run | Scr Mat Min Mat Min Exi Min Mat Fac Was Fac Low Low Dat Pro Fac Was Fac Low Low Zio Pro Fac Ext Cet Arc Hub Gar Fac Arm Lab Res Tes Used RIF Installer 1 | . . . . . . . . . . . . . . . . . . . . . . . . . . . 1 . . . . . Robots Hacked 5 | . . . . . 4 . . . . . . . . . . . . . . . . . . . . . . . . 1 . . Non-combat 3 | . . . . . 3 . . . . . . . . . . . . . . . . . . . . . . . . . . . Combat 1 | . . . . . 1 . . . . . . . . . . . . . . . . . . . . . . . . . . . Robot Hacks Applied 4 | . . . . . 4 . . . . . . . . . . . . . . . . . . . . . . . . . . . parse_system 4 | . . . . . 4 . . . . . . . . . . . . . . . . . . . . . . . . . . . Manual 1 | . . . . . . . . . . . . . . . . . . . . . . . . . . . . . . 1 . . Relay Couplers Released 8 | . . . . . . . . . . . . . . . . . . . . . . . . . . . 8 . . . . . Machine Destruction 8 | . . . . . . . . . . . . . . . . . . . . . . . . . . . 8 . . . . . Attached 1 | . . . . . . . . . . . . . . . . . . . . . . . . . . . 1 . . . . . Robots Rewired 16 | . . . . . . . . 2 . . . . . . . . . . . . . . 14 . . . . . . . . . Allies Hacked 1 | . . . . . . . . . . . . . . . . . . . . . . . 1 . . . . . . . . . Hacks Repelled . | . . . . . . . . . . . . . . . . . . . . . . . . . . . . . . . . . Allies | -11 -10 -10 -9 -9 -9 -8 -8 -7 -7 -7 -7 -7 -7 -6 -6 -6 -6 -6 -6 -6 -5 -5 -5 -5 -5 -5 -5 -4 -4 -4 -3 -3 -------- Run | Scr Mat Min Mat Min Exi Min Mat Fac Was Fac Low Low Dat Pro Fac Was Fac Low Low Zio Pro Fac Ext Cet Arc Hub Gar Fac Arm Lab Res Tes Total Allies 32 | . . . . 1 . . . 2 . 1 . . . . . . . . . 3 . . 18 5 . . . 2 . . . . Largest Group 10 | . . . . 1 . . . 2 2 1 1 1 1 . . . . . . 3 3 1 10 9 9 6 . 2 . . . . Highest-Rated Group 775 | . . . . 31 . . . 53 53 10 10 10 10 . . . . . . 104 104 31 496 775 775 567 . 112 . . . . Highest-Rated Ally 156 | . . . . 31 . . . 32 32 10 10 10 10 . . . . . . 42 42 31 156 156 144 97 . 56 . . . . Total Orders 31 | . . . . . . . . . . . 11 6 1 . . . . . 4 . . 2 6 1 . . . . . . . . STAY 10 | . . . . . . . . . . . 6 3 1 . . . . . . . . . . . . . . . . . . . FOLLOW 8 | . . . . . . . . . . . 5 3 . . . . . . . . . . . . . . . . . . . . EXPLORE 4 | . . . . . . . . . . . . . . . . . . . 3 . . . 1 . . . . . . . . . RETURN 9 | . . . . . . . . . . . . . . . . . . . 1 . . 2 5 1 . . . . . . . . Ally Attacks 301 | . . . . 7 . . . 6 19 . . . . . . . . . . . 24 17 95 60 18 37 . 18 . . . . Total Damage 8508 | . . . . 129 . . . 74 832 . . . . . . . . . . . 448 207 2693 1207 796 1396 . 726 . . . . Kills 62 | . . . . 2 . . . 2 1 . . . . . . . . . . . 5 2 21 9 4 9 . 7 . . . . Allies Corrupted 2 | . . . . . . . . . . . . . . . . . . . . . . . . . . 2 . . . . . . Allies Melted . | . . . . . . . . . . . . . . . . . . . . . . . . . . . . . . . . . Intel | -11 -10 -10 -9 -9 -9 -8 -8 -7 -7 -7 -7 -7 -7 -6 -6 -6 -6 -6 -6 -6 -5 -5 -5 -5 -5 -5 -5 -4 -4 -4 -3 -3 ------- Run | Scr Mat Min Mat Min Exi Min Mat Fac Was Fac Low Low Dat Pro Fac Was Fac Low Low Zio Pro Fac Ext Cet Arc Hub Gar Fac Arm Lab Res Tes Robot Analysis Total 122 | . 3 . 3 . . . 1 . . . . . 115 . . . . . . . . . . . . . . . . . . . Derelict Logs Recovered 15 | . . 2 . 1 . . . . . . 2 2 . 1 . . . 2 2 1 2 . . . . . . . . . . . Drone Launches 11 | . . . . . . . . . . . . . . . . . . . 3 . . 2 5 1 . . . . . . . . Drone Recoveries 9 | . . . . . . . . . . . . . . . . . . . 1 . . 2 5 1 . . . . . . . . Exploration | -11 -10 -10 -9 -9 -9 -8 -8 -7 -7 -7 -7 -7 -7 -6 -6 -6 -6 -6 -6 -6 -5 -5 -5 -5 -5 -5 -5 -4 -4 -4 -3 -3 ------------- Run | Scr Mat Min Mat Min Exi Min Mat Fac Was Fac Low Low Dat Pro Fac Was Fac Low Low Zio Pro Fac Ext Cet Arc Hub Gar Fac Arm Lab Res Tes Turns Passed 35329 | 141 318 625 466 736 517 934 1837 313 183 293 6067 3191 492 3855 204 45 525 2791 1999 1200 2601 295 1030 255 151 222 1244 405 329 1038 636 391 Spaces Moved 21555 | 76 222 467 251 533 409 642 1076 223 129 220 1844 1873 194 2772 159 76 372 2155 1205 979 1989 200 526 145 85 147 724 376 478 445 345 218 Core 87 | 9 . . . . . . . . . . . . 9 . . . . . . . . . . . . . . . . 11 3 55 Treads 1 | . . . . . . . . . . . . . . . . . . . . . . . . . . . . . 1 . . . Legs 20469 | 67 222 467 251 533 409 642 1076 223 129 220 1844 1873 185 2772 159 . 293 2155 1205 979 1989 200 526 145 85 127 723 182 3 322 342 121 Wheels . | . . . . . . . . . . . . . . . . . . . . . . . . . . . . . . . . . Hover 21 | . . . . . . . . . . . . . . . . . . . . . . . . . . . . . . . . 21 Flight 977 | . . . . . . . . . . . . . . . . 76 79 . . . . . . . . 20 1 194 474 112 . 21 Fastest Speed 35 | 50 120 120 120 120 120 120 120 120 120 120 120 126 120 120 120 50 50 120 120 120 120 120 120 120 120 50 50 50 50 50 45 35 Average Speed 120 | 111 120 120 127 120 120 120 120 120 120 120 124 126 141 120 120 50 105 120 120 120 120 120 120 120 120 110 119 83 52 211 122 146 Slowest Speed 1450 | 120 120 120 150 120 120 120 150 120 120 120 156 160 450 120 120 50 120 120 120 120 120 120 120 120 120 120 120 120 210 1450 800 550 Overloaded Moves 24 | . . . . . . . . . . . . . . . . . . . . . . . . . . . . . . . 23 1 Propulsion Burnouts . | . . . . . . . . . . . . . . . . . . . . . . . . . . . . . . . . . Robots Hopped 4 | . . . . . . . . . . . . . . . . . . . . . . . . . . 1 . 1 2 . . . Cave-ins Triggered . | . . . . . . . . . . . . . . . . . . . . . . . . . . . . . . . . . Teleports 1 | . . . . . . . . . . . . . . . . . . . . . . . . . . . . . . . . 1 Exploration Rate (%) 59 | 4 50 98 32 99 70 90 74 7 89 6 96 98 78 98 7 80 15 95 98 84 98 5 62 59 74 21 57 16 43 99 10 45 Regions Visited 32 Branch Regions 19 Pre-discovered Areas 28 | . . 2 1 . . . . . . . 1 1 23 . . . . . . . . . . . . . . . . . . . Known Exits Taken 21 | . 1 . 1 . . . 1 . . 1 1 1 1 1 . . 1 . 1 1 1 1 1 1 1 1 . 1 1 1 1 . Unknown Exits Taken 6 | 1 . 1 . 1 1 1 . . . . . . . . . . . 1 . . . . . . . . . . . . . . Scrap Searched 36 | . . 1 . 2 . 1 . . . . 5 5 . 5 . . . 4 9 3 1 . . . . . . . . . . . Spaces Dug 116 | . . . . . . . . . . . 3 . . 15 . . . . . . . . 15 . . 1 . 3 73 1 2 3 Terrain Destroyed 501 | 3 3 . . 5 . 34 7 . . . 3 . . 15 . . 3 22 . . . 1 48 . 5 154 7 78 73 25 12 3 Melee 13 | . . . . . . . . . . . . . . 13 . . . . . . . . . . . . . . . . . . Projectile 81 | . . . . . . . . . . . 3 . . 2 . . 3 11 . . . 1 21 . 5 6 7 3 1 3 12 3 AOE 406 | 3 3 . . 5 . 34 7 . . . . . . . . . . 10 . . . . 27 . . 148 . 75 72 22 . . Terrain Rammed 2 | . . . . . . . . . . . . . . . . . . 2 . . . . . . . . . . . . . . Walls Destroyed 1 | . . . . . . . . . . . . . . . . . . 1 . . . . . . . . . . . . . . Machines Disabled . | . . . . . . . . . . . . . . . . . . . . . . . . . . . . . . . . . Actions | -11 -10 -10 -9 -9 -9 -8 -8 -7 -7 -7 -7 -7 -7 -6 -6 -6 -6 -6 -6 -6 -5 -5 -5 -5 -5 -5 -5 -4 -4 -4 -3 -3 --------- Run | Scr Mat Min Mat Min Exi Min Mat Fac Was Fac Low Low Dat Pro Fac Was Fac Low Low Zio Pro Fac Ext Cet Arc Hub Gar Fac Arm Lab Res Tes Total 29524 | 106 247 498 343 590 433 728 1419 248 143 234 5558 2648 376 3217 166 84 455 2304 1734 1006 2153 228 842 199 117 180 997 451 541 528 478 273 Wait 5925 | . 2 . 20 24 . 23 175 . 9 1 3603 680 128 299 . . 30 64 475 6 82 9 33 26 9 4 159 24 . 24 16 . Move 21518 | 75 221 466 250 532 408 641 1075 223 128 219 1843 1872 193 2771 159 75 371 2154 1204 978 1988 199 525 144 84 145 723 373 473 444 344 218 Hop 4 | . . . . . . . . . . . . . . . . . . . . . . . . . . 1 . 1 2 . . . Pick Up 336 | 10 5 4 9 1 6 6 18 2 . 3 35 22 12 30 1 4 7 21 8 10 12 4 11 1 2 4 20 15 10 19 15 9 Fast Attach 75 | 1 . . 3 1 . . 8 1 . . 1 5 1 4 . . 2 4 7 3 6 . 11 3 2 . 1 1 4 2 3 1 Attach 191 | 6 . . 5 . 1 4 6 2 . 3 14 6 9 10 1 1 6 6 2 1 4 3 8 1 . 1 25 8 6 13 22 17 Detach 36 | . . . 1 . . . . . . . 1 1 . 3 . . . 1 1 1 2 . 3 . . 1 4 2 4 1 9 1 Swap 160 | . 3 4 9 7 5 4 16 1 . . 6 8 2 9 2 . 11 12 2 . 8 . 14 9 5 3 4 6 7 1 2 . Drop 283 | 1 2 5 13 4 9 4 25 2 . 1 18 23 7 30 . 4 6 9 10 7 14 1 19 4 7 8 3 11 9 13 10 4 Fire 739 | 13 14 19 33 21 . 45 96 10 6 7 34 31 21 28 3 . 22 31 25 . 37 12 44 11 8 12 58 10 8 11 51 18 Melee 27 | . . . . . 4 . . . . . . . . 23 . . . . . . . . . . . . . . . . . . Ram 6 | . . . . . . . . . . . . . . . . . . 2 . . . . . . . . . . . . 1 3 Kick 7 | . . . . . . . . . . . . . . 1 . . . . . . . . . . . 1 . . . . 5 . Crush . | . . . . . . . . . . . . . . . . . . . . . . . . . . . . . . . . . Escape Stasis 20 | . . . . . . . . . . . . . . . . . . . . . . . . . . . . . 18 . . 2 Rewire 182 | . . . . . . . . 7 . . . . . 1 . . . . . . . . 174 . . . . . . . . . Trap 15 | . . . . . . 1 . . . . 3 . 3 8 . . . . . . . . . . . . . . . . . . Miscellaneous . | . . . . . . . . . . . . . . . . . . . . . . . . . . . . . . . . . Route ------- -11/Scrapyard -10/Materials (discovered 3 exits: *Mat / *Min x2) -10/Mines (discovered 2 exits: *Mat x2) -9/Materials (discovered 2 exits: *Min x2) -9/Mines (discovered 3 exits: *Mat x2 / *Exi) -9/Exiles -8/Mines (discovered 2 exits: *Mat x2) -8/Materials (discovered 4 exits: *Fac x2 / *Sto x2) -7/Factory -7/Waste -7/Factory -7/Lower Caves -7/Lower Caves (discovered 2 exits: *Fac / *Dat) -7/Data Miner -6/Proximity Caves -6/Factory -6/Waste -6/Factory (discovered 2 exits: *Low x2) -6/Lower Caves -6/Lower Caves (discovered 2 exits: *Fac / *Zio) -6/Zion (discovered 2 exits: [Dee] / *Pro) -5/Proximity Caves -5/Factory (discovered 4 exits: Fac x2 / Upp / *Ext) -5/Extension (discovered 2 exits: *Fac / *Cet) -5/Cetus -5/Archives (discovered 3 exits: *Fac / *Hub x2) -5/Hub_04(d) (discovered 3 exits: *Fac x2 / Gar) -5/Garrison (discovered 2 exits: *Fac x2) -4/Factory (discovered 4 exits: *Res / *Upp x2 / *Arm) -4/Armory (discovered 3 exits: *Res x2 / *Lab) -4/Lab -3/Research (discovered 2 exits: *Tes x2) -3/Testing (discovered 1 exit: Res) History --------- Turn | Location | Event 2 | -11/Scrapyard | Discovered new exit (range 16) 142 | -11/Scrapyard | Entered Materials 313 | -10/Materials | Build established: Mutant 363 | -10/Materials | Identified exit to Mines 382 | -10/Materials | Discovered new exit (range 16) 390 | -10/Materials | Central database locked down 460 | -10/Materials | Entered Mines 460 | -10/Mines | Discovered new exit (range 11) 554 | -10/Mines | Learned location of Zion (-6) 619 | -10/Mines | Learned location of Storage (-8) 723 | -10/Mines | Learned Materials stockpile data 910 | -10/Mines | Found a hidden stash of uninstalled traps 956 | -10/Mines | Found a damaged Exp. Sensor Array with a note attached 963 | -10/Mines | Found Prototype Device 1040 | -10/Mines | Discovered new exit (range 13) 1085 | -10/Mines | Entered Materials 1085 | -9/Materials | Evolved 2 slots: Propulsion x1, Utility x1 1526 | -9/Materials | Identified exit to Mines 1551 | -9/Materials | Entered Mines 1554 | -9/Mines | Received a Mining Laser from a helpful Derelict 1594 | -9/Mines | Assembled infested the area 1598 | -9/Mines | Identified Exp. Sensor Array 1718 | -9/Mines | Discovered new exit (range 11) 1732 | -9/Mines | Allies destroyed YI-UF0 2185 | -9/Mines | Discovered new exit (range 6) 2282 | -9/Mines | Deemed a non-threat by the Exiles lab entrance 2282 | -9/Mines | Discovered new exit (range 5) 2287 | -9/Mines | Entered Exiles 2317 | -9/Exiles | Met 8R-AWN 2337 | -9/Exiles | Met EX-HEX 2376 | -9/Exiles | Met EX-BIN 2389 | -9/Exiles | Aligned with FarCom system 2391 | -9/Exiles | Given EX-Vault access code 2510 | -9/Exiles | Met EX-DEC 2591 | -9/Exiles | Opened EX-Vault 2606 | -9/Exiles | Found Flying Fortress v7 2612 | -9/Exiles | Found XL Autogun Array 2615 | -9/Exiles | Found Potential Leg 2622 | -9/Exiles | Found Potential Leg 2648 | -9/Exiles | Warned to stay clear of 0b10 Research branches 2789 | -9/Exiles | Discovered new exit (range 14) 2804 | -9/Exiles | Stole three prototypes: Potential Leg, Flying Fortress v7, XL Autogun Array 2804 | -9/Exiles | Entered Mines 2836 | -8/Mines | Core integrity fell below 50% 3454 | -8/Mines | Discovered new exit (range 15) 3571 | -8/Mines | Discovered new exit (range 5) 3738 | -8/Mines | Entered Materials 3738 | -8/Materials | Evolved 2 slots: Utility x1, Weapon x1 3739 | -8/Materials | Identified exit to Storage 3897 | -8/Materials | Discovered exit to Storage (range 4) 4237 | -8/Materials | Build established: Scavenger-Skirmisher 4792 | -8/Materials | Discovered new exit (range 12) 5011 | -8/Materials | Central database locked down 5306 | -8/Materials | Repaired Broken Exp. Sensor Array 5439 | -8/Materials | Discovered new exit (range 16) 5574 | -8/Materials | Identified exit to Factory 5575 | -8/Materials | Entered Factory 5575 | -7/Factory | Evolved 2 slots: Utility x2 5577 | -7/Factory | FarCom data flow suspended 5888 | -7/Factory | Sucked down chute 5888 | -7/Factory | Entered Waste 5900 | -7/Waste | 2 allies followed down the chute 5903 | -7/Waste | EMP discharged 5962 | -7/Waste | Allies destroyed C-40 Crusher 5964 | -7/Waste | Spotted C-40 Crusher 5968 | -7/Waste | Spotted C-40 Crusher 5968 | -7/Waste | Spotted C-40 Crusher 6002 | -7/Waste | Spotted C-40 Crusher 6003 | -7/Waste | EMP discharged 6003 | -7/Waste | System corruption reached 10% 6021 | -7/Waste | Spotted C-40 Crusher 6060 | -7/Waste | Discovered new exit (range 10) 6069 | -7/Waste | Identified exit to Factory 6071 | -7/Waste | Entered Factory 6173 | -7/Factory | Discovered new exit (range 8) 6207 | -7/Factory | Identified exit to Lower Caves 6364 | -7/Factory | Entered Lower Caves 6364 | -7/Lower Caves | Accompanied by 1 ally 6364 | -7/Lower Caves | Spotted AH-F1J(f) 6365 | -7/Lower Caves | Encountered a Master Thief 6365 | -7/Lower Caves | XL Autogun Array stolen by Master Thief 6365 | -7/Lower Caves | Spotted CD-VSQ(f) 6366 | -7/Lower Caves | Encountered a Master Thief 6370 | -7/Lower Caves | Adv. Heat Sink stolen by Master Thief 6613 | -7/Lower Caves | Learned Factory terminal intel 7537 | -7/Lower Caves | Lost 5 parts (1n2u2w) 7605 | -7/Lower Caves | Discovered new exit (range 14) 7739 | -7/Lower Caves | Identified exit to Lower Caves 7832 | -7/Lower Caves | Build established: Scavenger-Mutant 8497 | -7/Lower Caves | Build established: Scavenger-Skirmisher 11885 | -7/Lower Caves | Build established: Scavenger-Mutant 12431 | -7/Lower Caves | Entered another Lower Caves area 12431 | -7/Lower Caves | Accompanied by 1 ally 13233 | -7/Lower Caves | Discovered new exit (range 9) 13242 | -7/Lower Caves | Identified exit to Factory 13668 | -7/Lower Caves | Build established: Scavenger-Skirmisher 14408 | -7/Lower Caves | Learned Factory interactive machine intel 14518 | -7/Lower Caves | Build established: Scavenger-Mutant 14538 | -7/Lower Caves | Encountered a Warlord checkpoint 14584 | -7/Lower Caves | Spotted GR-SRJ(f) 14587 | -7/Lower Caves | Encountered a Master Thief 14591 | -7/Lower Caves | Hvy. Flak Cannon stolen by Master Thief 14594 | -7/Lower Caves | Spotted 5A-SB1(f) 14594 | -7/Lower Caves | Spotted UC-CQJ(f) 14594 | -7/Lower Caves | Spotted 8B-0DB(f) 14595 | -7/Lower Caves | Encountered a Master Thief 14595 | -7/Lower Caves | Encountered a Master Thief 14596 | -7/Lower Caves | Encountered a Master Thief 14602 | -7/Lower Caves | Destroyed 8B-0DB(f) 14607 | -7/Lower Caves | Lgt. Angular Momentum Engine stolen by Master Thief 14615 | -7/Lower Caves | Magnetic Acceleration Cannon stolen by Master Thief 14860 | -7/Lower Caves | Discovered new exit (range 11) 14938 | -7/Lower Caves | Build established: Scavenger-Skirmisher 15620 | -7/Lower Caves | Identified exit to Data Miner 15622 | -7/Lower Caves | Entered Data Miner 15622 | -7/Data Miner | Accompanied by 1 ally 15622 | -7/Data Miner | Discovered new exit (range 6) 15646 | -7/Data Miner | Met Data Miner 15720 | -7/Data Miner | Learned location of Section 7 (-2) 15720 | -7/Data Miner | Acquired the access code to Warlord's prototype stash 15863 | -7/Data Miner | Received God Mode back door access code from Data Miner 15958 | -7/Data Miner | Interfaced with the Data Conduit 16038 | -7/Data Miner | Lost 8 parts (1p3n2u2w) 16070 | -7/Data Miner | Found Exp. Thermal Shield 16088 | -7/Data Miner | Core integrity fell below 50% 16112 | -7/Data Miner | Lost 4 parts (1u3w) 16113 | -7/Data Miner | Identified exit to Proximity Caves 16114 | -7/Data Miner | Entered Proximity Caves 16364 | -6/Proximity Caves | Build established: Scavenger-Mutant 17188 | -6/Proximity Caves | Learned Factory emergency access door positions 19194 | -6/Proximity Caves | Spotted B-75 Beast 19225 | -6/Proximity Caves | Destroyed B-75 Beast 19315 | -6/Proximity Caves | Discovered exit to Factory (range 5) 19535 | -6/Proximity Caves | Build established: Scavenger-Skirmisher 19954 | -6/Proximity Caves | Build established: Scavenger-Mutant 19969 | -6/Proximity Caves | Entered Factory 19969 | -6/Factory | Evolved 2 slots: Power x1, Propulsion x1 19971 | -6/Factory | Loaded intel: 233 machine locations 19972 | -6/Factory | Loaded intel: 45 interactive machine locations 19973 | -6/Factory | Loaded intel: 19 terminal locations 20173 | -6/Factory | Sucked down chute 20173 | -6/Factory | Entered Waste 20185 | -6/Waste | Spotted C-40 Crusher 20186 | -6/Waste | Spotted C-40 Crusher 20187 | -6/Waste | Spotted C-40 Crusher 20188 | -6/Waste | EMP discharged 20190 | -6/Waste | Spotted C-40 Crusher 20193 | -6/Waste | Spotted C-40 Crusher 20205 | -6/Waste | Spotted C-40 Crusher 20212 | -6/Waste | Discovered new exit (range 13) 20218 | -6/Waste | Identified exit to Factory 20218 | -6/Waste | Entered Factory 20219 | -6/Factory | Loaded intel: 242 machine locations 20287 | -6/Factory | Fabricated Adv. Terrain Scanner (x2) 20431 | -6/Factory | Build established: Scavenger-Skirmisher 20573 | -6/Factory | Identified exit to Lower Caves 20743 | -6/Factory | Entered Lower Caves 20743 | -6/Lower Caves | Spotted 8R-D04(f) 20744 | -6/Lower Caves | Encountered a Master Thief 20758 | -6/Lower Caves | Destroyed 8R-D04(f) 20868 | -6/Lower Caves | Found Prototype Device 21346 | -6/Lower Caves | Build established: Scavenger-Mutant 21387 | -6/Lower Caves | Learned Factory interactive machine intel 21406 | -6/Lower Caves | Learned Factory emergency access door positions 21517 | -6/Lower Caves | Discovered new exit (range 7) 22409 | -6/Lower Caves | Found Alien Artifact 22409 | -6/Lower Caves | Identified Core Expander 22409 | -6/Lower Caves | Installed Core Expander, added new Weapon slot 22750 | -6/Lower Caves | Identified Heart of Steel 23051 | -6/Lower Caves | Build established: Scavenger-Gunner 23448 | -6/Lower Caves | Build established: Scavenger-Mutant 23534 | -6/Lower Caves | Entered another Lower Caves area 23557 | -6/Lower Caves | Discovered new exit (range 18) 23938 | -6/Lower Caves | Discovered new exit (range 72) 24237 | -6/Lower Caves | Learned location of 1 exit from Factory 24564 | -6/Lower Caves | Encountered a Warlord checkpoint 24887 | -6/Lower Caves | Identified exit to Zion 25533 | -6/Lower Caves | Entered Zion 25574 | -6/Zion | Received a visual enhancement algorithm 25593 | -6/Zion | Discovered new exit (range 18) 25727 | -6/Zion | Learned Factory stockpile data 25852 | -6/Zion | Visited the Megawrench Repair Shop 25852 | -6/Zion | Megawrench repaired 15 parts 26110 | -6/Zion | Given the Hacking Drone Bay 26431 | -6/Zion | Found Prototype Device 26431 | -6/Zion | Identified Hacking Drone Bay 26461 | -6/Zion | Discovered new exit (range 20) 26603 | -6/Zion | Gained Derelict followers 26725 | -6/Zion | Identified exit to Proximity Caves 26733 | -6/Zion | Entered Proximity Caves 26733 | -5/Proximity Caves | Accompanied by 3 allies 26765 | -5/Proximity Caves | Learned Factory machine intel 26924 | -5/Proximity Caves | Learned 8 Factory zone layouts 27054 | -5/Proximity Caves | Spotted B-75 Beast 27070 | -5/Proximity Caves | Destroyed B-75 Beast 27385 | -5/Proximity Caves | Build established: Scavenger-Skirmisher 27752 | -5/Proximity Caves | Found Alien Artifact 27752 | -5/Proximity Caves | Identified Dimensional Node Initializer 27752 | -5/Proximity Caves | Initialized slip node 28041 | -5/Proximity Caves | Build established: Scavenger-Mutant 28271 | -5/Proximity Caves | Discovered new exit (range 15) 28412 | -5/Proximity Caves | Identified exit to Factory 28649 | -5/Proximity Caves | Build established: Scavenger-Gunner 29334 | -5/Proximity Caves | Entered Factory 29334 | -5/Factory | Accompanied by 1 ally 29334 | -5/Factory | Evolved 2 slots: Utility x2 29335 | -5/Factory | Identified exit to Factory 29336 | -5/Factory | Identified exit to Upper Caves 29339 | -5/Factory | Loaded intel: 251 machine locations 29340 | -5/Factory | Loaded intel: 48 interactive machine locations 29383 | -5/Factory | Build established: Scavenger-Skirmisher 29616 | -5/Factory | Discovered new exit (range 10) 29626 | -5/Factory | Identified exit to Extension 29629 | -5/Factory | Entered Extension 29629 | -5/Extension | Accompanied by 1 ally 29630 | -5/Extension | Loaded intel: 26 machine locations 29639 | -5/Extension | Disrupted transfer network 29676 | -5/Extension | Rescued a captive Derelict 30010 | -5/Extension | Build established: Scavenger-Gunner 30194 | -5/Extension | Rescued A7 30315 | -5/Extension | Energy Cycler disabled 30316 | -5/Extension | Rescued a captive Derelict 30411 | -5/Extension | Heart of Steel transformed into Warbot 30609 | -5/Extension | Discovered exit to Factory (range 10) 30610 | -5/Extension | Discovered new exit (range 6) 30624 | -5/Extension | Identified exit to Cetus 30659 | -5/Extension | Entered Cetus 30659 | -5/Cetus | Accompanied by 5 allies (incl. A7, Warbot) 30660 | -5/Cetus | Loaded intel: 24 machine locations 30664 | -5/Cetus | Acquired a Cetus Manufacturing Module code from A7 30683 | -5/Cetus | Spotted Cetus Guard 30683 | -5/Cetus | Spotted Cetus Guard 30683 | -5/Cetus | Destroyed Cetus Guard 30685 | -5/Cetus | Spotted Cetus Guard 30687 | -5/Cetus | Spotted Cetus Guard 30689 | -5/Cetus | Allies destroyed Cetus Guard 30693 | -5/Cetus | Allies destroyed Cetus Guard 30697 | -5/Cetus | Allies destroyed Cetus Guard 30749 | -5/Cetus | Started Cetus Manufacturing Module 30774 | -5/Cetus | Manufactured an Enhanced Grunt 30799 | -5/Cetus | Manufactured an Enhanced Grunt 30824 | -5/Cetus | Manufactured an Enhanced Grunt 30826 | -5/Cetus | Escorted A7 to Cetus Mainframe 30848 | -5/Cetus | Discovered new exit (range 15) 30849 | -5/Cetus | Manufactured an Enhanced Grunt 30874 | -5/Cetus | Manufactured an Enhanced Grunt 30893 | -5/Cetus | Identified exit to Archives 30914 | -5/Cetus | Entered Archives 30914 | -5/Archives | Accompanied by 9 allies (incl. A7, Warbot) 30915 | -5/Archives | Loaded intel: 8 machine locations 30919 | -5/Archives | Received a hacking code to weaken MAIN.C 30961 | -5/Archives | Discovered new exit (range 15) 30986 | -5/Archives | Discovered exit to Factory (range 13) 31000 | -5/Archives | Discovered new exit (range 16) 31007 | -5/Archives | Unable to access archive contents 31052 | -5/Archives | Identified exit to Hub_04(d) 31065 | -5/Archives | Entered Hub_04(d) 31065 | -5/Hub_04(d) | Accompanied by 6 allies (Warbot) 31066 | -5/Hub_04(d) | Loaded intel: 101 machine locations 31094 | -5/Hub_04(d) | Discovered exit to Factory (range 16) 31094 | -5/Hub_04(d) | Disrupted transfer network 31124 | -5/Hub_04(d) | Garrison activated, responded to threat 31187 | -5/Hub_04(d) | Discovered exit to Factory (range 7) 31216 | -5/Hub_04(d) | Network Hub disabled 31254 | -5/Hub_04(d) | Spotted Lightning 31254 | -5/Hub_04(d) | Spotted Lightning 31270 | -5/Hub_04(d) | Spotted Lightning 31287 | -5/Hub_04(d) | Identified exit to Garrison 31287 | -5/Hub_04(d) | Entered Garrison 31288 | -5/Garrison | Loaded intel: 19 machine locations 31538 | -5/Garrison | Destroyed 8 combat bots 31620 | -5/Garrison | Triggered checkpoint 31673 | -5/Garrison | Discovered exit to Factory (range 10) 31690 | -5/Garrison | Installed Relay Interface Framework 31780 | -5/Garrison | Triggered checkpoint 31804 | -5/Garrison | Garrison Relay disabled 31976 | -5/Garrison | Triggered checkpoint 32027 | -5/Garrison | Garrison Relay disabled 32111 | -5/Garrison | Build established: Scavenger-Mutant 32243 | -5/Garrison | Lost 9 parts (2p1n1u5w) 32476 | -5/Garrison | Discovered exit to Factory (range 15) 32531 | -5/Garrison | Entered Factory 32531 | -4/Factory | Evolved 2 slots: Power x1, Utility x1 32532 | -4/Factory | Loaded intel: 246 machine locations 32781 | -4/Factory | First assault squad dispatched 32781 | -4/Factory | Identified exit to Upper Caves 32781 | -4/Factory | Identified exit to Armory 32850 | -4/Factory | Lost 6 parts (1p2u3w) 32884 | -4/Factory | Discovered new exit (range 13) 32936 | -4/Factory | Entered Armory 32937 | -4/Armory | Loaded intel: 82 machine locations 33065 | -4/Armory | Discovered new exit (range 17) 33206 | -4/Armory | Discovered new exit (range 4) 33245 | -4/Armory | Build established: Scout 33260 | -4/Armory | Discovered new exit (range 5) 33264 | -4/Armory | Identified exit to Lab 33265 | -4/Armory | Entered Lab 33267 | -4/Lab | Discovered new exit (range 9) 33271 | -4/Lab | Identified exit to Research 33273 | -4/Lab | Hidden lab's door opened automatically 33273 | -4/Lab | Sensor layout match revealed 33274 | -4/Lab | Gained access to the hidden lab's interior 33283 | -4/Lab | Detected by scanners 33289 | -4/Lab | Confronted by A5 33289 | -4/Lab | Destroyed A5 with decrypted code from the hidden lab 33308 | -4/Lab | Decrypted terminal 33308 | -4/Lab | Acquired modification code for an L2 power cell 33315 | -4/Lab | Found Prototype Energy Cannon 33316 | -4/Lab | Identified Potential Cannon 33590 | -4/Lab | Found Alien Artifact 33597 | -4/Lab | Build established: Skirmisher 33654 | -4/Lab | Found Alien Artifact 33713 | -4/Lab | Found Alien Artifact 33755 | -4/Lab | Found Alien Artifact 33827 | -4/Lab | Found Prototype Energy Cannon 33874 | -4/Lab | Found Prototype Special Weapon 33921 | -4/Lab | Found Prototype Protection 33943 | -4/Lab | Found Prototype Hackware 34122 | -4/Lab | Disabled Active System Cloaker 34133 | -4/Lab | MAIN.C forces arrive to investigate 34193 | -4/Lab | Lost 3 parts (1p2w) 34208 | -4/Lab | Identified Med. Regenerative Plating 34303 | -4/Lab | Entered Research 34303 | -3/Research | Evolved 2 slots: Propulsion x1, Weapon x1 34304 | -3/Research | Loaded intel: 110 machine locations 34445 | -3/Research | Identified exit to Testing 34614 | -3/Research | Identified Transdimensional Reconstructor 34614 | -3/Research | Identified Core Regenerator 34614 | -3/Research | Identified Integrated Reactor 34614 | -3/Research | Identified Core Reset Matrix 34614 | -3/Research | Installed Integrated Reactor, increased core energy generation (+10) 34695 | -3/Research | System corruption reached 10% 34720 | -3/Research | Identified Warp Cannon 34728 | -3/Research | Lost 4 parts (2n2w) 34802 | -3/Research | Lost 8 parts (2p1n1u4w) 34883 | -3/Research | Intercept squad dispatched 34888 | -3/Research | Spotted Tracker 34888 | -3/Research | Spotted Tracker 34913 | -3/Research | Spotted Combat Programmer 34914 | -3/Research | Spotted Combat Programmer 34930 | -3/Research | Core integrity fell below 50% 34932 | -3/Research | Used Core Regenerator, restored core integrity (+325) 34939 | -3/Research | Entered Testing 34940 | -3/Testing | Loaded intel: 71 machine locations 34959 | -3/Testing | Lost 13 parts (2p3n5u3w) 35011 | -3/Testing | Warped through subspace 35082 | -3/Testing | Found Prototype Energy Gun 35083 | -3/Testing | Identified Warp Gun 35165 | -3/Testing | Found Potential Cannon 35182 | -3/Testing | Build established: Mutant 35227 | -3/Testing | Identified Deep Network Scanner 35277 | -3/Testing | Lost 3 parts (2u1w) 35289 | -3/Testing | Identified exit to Research 35298 | -3/Testing | System corruption reached 30% 35301 | -3/Testing | Core integrity fell below 20% 35327 | -3/Testing | Spotted Alpha 7 35328 | -3/Testing | Lost 6 parts (1p2n1u2w) 35328 | -3/Testing | Spotted X9-UWM(L) 35328 | -3/Testing | Spotted 4H-CX7(L) 35328 | -3/Testing | Spotted G6-N6X(L) 35330 | -3/Testing | Destroyed by P-80 Master with Gamma Rifle Last Messages --------------- 35297_ Cld. Antigrav System destroyed. 35297_ Dropped Warp Cannon. 35297_ Lrg. Storage Unit destroyed. 35297_ Dropped Imp. Energy Well. 35299_ Penetrated by Slug. 35299_ Slug penetrates Wall. 35299_ Extracted 2 energy. 35300_ Penetrated by Slug. 35300_ Slug penetrates Wall. 35302_ Penetrated by Slug. 35307_ System corrupted: Heat flow error (+196). 35309_ U-05 Engineer lays Concrete. 35316_ C-55 Analyst calibrates the Ion Accelerator. 35321_ Acquired Cld. Impulse Thruster. 35322_ C-55 Analyst calibrates the Ion Accelerator. 35325_ System corrupted: Heat flow error (+218). 35326_ ALERT: Live fire test to commence in T-25. 35326_ C-55 Analyst calibrates the Ion Accelerator. 35329_ O-24 Administrator: "IFF HANDSHAKE FAILED. SECURING TERMINAL." 35329_ Imp. Thermal Shield destroyed. Map ----- +----------------------------------------------------+ | | | | | | | | | ?????????????????????????????????????????????????? | | ?????????????????????????????????????????????????? | | ??????????????????????"""S"""????????????????????? | | ??????????????????????"""?"""????????????????????? | | ?????????????????????????????????????????????????? | | ?????????????????????????????????????????????????? | | ?????????????????????????????????????????????????? | | ?????????????????????????????????????????????????? | | ?????????????????????????#+###+#?????????????????? | | ???????????????????"""??? #?????????????????? | | ?"""??????????????""R"??# #?????????????????? | | ""F""?????????????""?"??+ #???##????????????? | | ""?""???????????????????# #?? g#????????????? | | ????????????????????????# #? ?????????????? | | ????????????????????????# ## #??????????????? | | """?"""????????????###### #??????????????? | | """?"""????????????# #" ###????????????? | | """?"""????????????# #" """"" ""#????????????? | | ???????????????????# #" ""T"" ""#????????????? | | ???????????????????# #T o ""#????????????? | | ??????? ???????????# #" T#????????????? | | ???+???#???????